{"text_format":"3","workbook":"xlsx","n_sheets":2,"sheets":["Inizio","Fattura per servizi"],"not_rendered":{"images":1,"defined_names":1},"read":"whole","date_system":"1900"}

{"sheet":"Inizio","index":0,"n_rows":8,"n_cols":2,"rows_kept":8}
[null,"INFORMAZIONI SU QUESTO MODELLO"]
[null,"Usare questo modello per creare una fattura per servizi."]
[null,"Inserire numero della fattura, data, il nome della società, indirizzo, slogan e dettagli destinatario fattura."]
[null,"Immettere le informazioni nelle tabelle."]
[null,"Il totale viene calcolato automaticamente."]
[null,"Nota: "]
[null,"Altre istruzioni sono state fornite nella colonna A nel foglio di lavoro FATTURA PER SERVIZI. Questo testo è stato nascosto intenzionalmente. Per rimuovere il testo, seleziona la colonna A, quindi scegli ELIMINA. Per visualizzare il testo, selezionare la colonna A, quindi modificare il colore del carattere."]
[null,"Per ulteriori informazioni sulle tabelle premere MAIUSC, quindi F10 in una tabella, selezionare l'opzione TABELLA, quindi selezionare TESTO ALTERNATIVO."]

{"sheet":"Fattura per servizi","index":1,"n_rows":44,"n_cols":5,"rows_kept":44,"merged":[[0,1,0,2],[0,3,0,4],[2,1,2,3],[3,1,3,3],[4,1,4,2],[5,1,5,2],[6,1,6,2],[7,1,7,2],[41,1,41,2],[41,3,41,4],[43,1,43,4]]}
[null,"Il segnaposto del logo si trova in questa cella.",null,"FATTURA"]
[]
[null,"Nome società"]
[null,"Slogan aziendale"]
[null,"Via e numero civico",null,"FATTURA N.","N."]
[null,"CAP Città e provincia",null,"DATA ",{"$f":"TODAY()","v":"2022-05-06"}]
[null,"Telefono Fax",null,"ID CLIENTE ","ID"]
[null,"Posta elettronica"]
[null,"DESTINATARIO","Nome"]
[null,null,"Nome società"]
[null,null,"Via e numero civico"]
[null,null,"CAP città (provincia)"]
[null,null,"Telefono"]
[null,"VENDITORE","LAVORO","TERMINI DI PAGAMENTO","SCADENZA"]
[{"$nulls":3},"Pagamento al ricevimento"]
[]
[null,"QUANTITÀ","DESCRIZIONE","PREZZO UNITARIO","TOTALE RIGA"]
[{"$nulls":4},{"$f":"IF(SUM(B18)>0,SUM(B18*'Fattura per servizi'!$D18),\"\")","v":""}]
[{"$nulls":4},{"$f":"IF(SUM(B19)>0,SUM(B19*'Fattura per servizi'!$D19),\"\")","v":""}]
[{"$nulls":4},{"$f":"IF(SUM(B20)>0,SUM(B20*'Fattura per servizi'!$D20),\"\")","v":""}]
[{"$nulls":4},{"$f":"IF(SUM(B21)>0,SUM(B21*'Fattura per servizi'!$D21),\"\")","v":""}]
[{"$nulls":4},{"$f":"IF(SUM(B22)>0,SUM(B22*'Fattura per servizi'!$D22),\"\")","v":""}]
[{"$nulls":4},{"$f":"IF(SUM(B23)>0,SUM(B23*'Fattura per servizi'!$D23),\"\")","v":""}]
[{"$nulls":4},{"$f":"IF(SUM(B24)>0,SUM(B24*'Fattura per servizi'!$D24),\"\")","v":""}]
[{"$nulls":4},{"$f":"IF(SUM(B25)>0,SUM(B25*'Fattura per servizi'!$D25),\"\")","v":""}]
[{"$nulls":4},{"$f":"IF(SUM(B26)>0,SUM(B26*'Fattura per servizi'!$D26),\"\")","v":""}]
[{"$nulls":4},{"$f":"IF(SUM(B27)>0,SUM(B27*'Fattura per servizi'!$D27),\"\")","v":""}]
[{"$nulls":4},{"$f":"IF(SUM(B28)>0,SUM(B28*'Fattura per servizi'!$D28),\"\")","v":""}]
[{"$nulls":4},{"$f":"IF(SUM(B29)>0,SUM(B29*'Fattura per servizi'!$D29),\"\")","v":""}]
[{"$nulls":4},{"$f":"IF(SUM(B30)>0,SUM(B30*'Fattura per servizi'!$D30),\"\")","v":""}]
[{"$nulls":4},{"$f":"IF(SUM(B31)>0,SUM(B31*'Fattura per servizi'!$D31),\"\")","v":""}]
[{"$nulls":4},{"$f":"IF(SUM(B32)>0,SUM(B32*'Fattura per servizi'!$D32),\"\")","v":""}]
[{"$nulls":4},{"$f":"IF(SUM(B33)>0,SUM(B33*'Fattura per servizi'!$D33),\"\")","v":""}]
[{"$nulls":4},{"$f":"IF(SUM(B34)>0,SUM(B34*'Fattura per servizi'!$D34),\"\")","v":""}]
[{"$nulls":4},{"$f":"IF(SUM(B35)>0,SUM(B35*'Fattura per servizi'!$D35),\"\")","v":""}]
[{"$nulls":4},{"$f":"IF(SUM(B36)>0,SUM(B36*'Fattura per servizi'!$D36),\"\")","v":""}]
[{"$nulls":4},{"$f":"IF(SUM(B37)>0,SUM(B37*'Fattura per servizi'!$D37),\"\")","v":""}]
[{"$nulls":3},"SUBTOTALE",{"$f":"IF(SUM(E18:E37)>0,SUM(E18:E37),\"\")","v":""}]
[{"$nulls":3},"IVA"]
[{"$nulls":3},"TOTALE",{"$f":"IF(SUM(E38)>0,SUM((E38*E39)+E38),\"\")","v":""}]
[]
[null,"Gli assegni devono essere intestati a",null,{"$f":"B3","v":"Nome società"}]
[]
[null,"GRAZIE PER AVERCI SCELTO!"]